[Event "4NCL 2019-20"]
[Site "Daventry"]
[Date "2020.02.29"]
[Round "1"]
[White "Steil-Antoni, Fiona"]
[Black "Dahl, Baard"]
[Result "0-1"]
[ECO "C45"]
[WhiteElo "2121"]
[BlackElo "2078"]
[Annotator "ChessBase"]
[PlyCount "84"]
[EventDate "2020.01.11"]
[EventCountry "ENG"]
[SourceTitle "playchess.com"]
[Source "ChessBase"]
[SourceQuality "1"]
[TimeControl "40/6000:3000+30"]

1. e4 {[%emt 0:04:15]} e5 {[%emt 0:00:00]} 2. Nf3 {[%emt 0:00:00]} Nc6 {[%emt 0:00:00]} 3. d4 {[%emt 0:00:00]} exd4 {[%emt 0:00:00]} 4. Nxd4 {[%emt 0:00:00]} Qf6 {[%emt 0:00:00]} 5. Nb5 {[%emt 0:05:39]} Bc5 {[%emt 0:00:00]} 6. Qe2 {[%emt 0:04:14]} Bb6 {[%emt 0:00:00]} 7. N1c3 {[%emt 0:02:15]} Nge7 {[%emt 0:00:00]} 8. Nd5 {[%emt 0:06:05]} Nxd5 {[%emt 0:00:00]} 9. exd5+ {[%emt 0:00:00]} Kd8 {[%emt 0:00:00]} 10. h4 {[%emt 0:11:43]} h6 {[%emt 0:00:00]} 11. dxc6 {[%emt 0:05:19]} Re8 {[%emt 0:00:00]} 12. Be3 {[%emt 0:04:11]} Qxb2 {[%emt 0:00:00]} 13. Rd1 {[%emt 0:01:50]} bxc6 {[%emt 0:00:00]} 14. Qf3 {[%emt 0:22:31]} Ba5+ {[%emt 0:00:11]} 15. c3 {[%emt 0:00:36]} cxb5 {[%emt 0:00:00]} 16. Be2 {[%emt 0:00:20]} Qxc3+ {[%emt 0:17:07]} 17. Kf1 {[%emt 0:00:00]} Rb8 {[%emt 0:00:43]} 18. Qxf7 {[%emt 0:00:05]} Qe5 {[%emt 0:03:57]} 19. Bh5 {[%emt 0:03:08]} Bc3 {[%emt 0:09:34]} 20. Qxe8+ {[%emt 0:08:31]} Qxe8 {[%emt 0:00:00]} 21. Bxe8 {[%emt 0:00:00]} Kxe8 {[%emt 0:00:00]} 22. Bxa7 {[%emt 0:03:50]} Ra8 {[%emt 0:00:00]} 23. Rh3 {[%emt 0:00:12]} b4 {[%emt 0:00:05]} 24. Bd4 {[%emt 0:00:59]} Bxd4 {[%emt 0:07:57]} 25. Rxd4 {[%emt 0:00:00]} c5 {[%emt 0:04:58]} 26. Re3+ {[%emt 0:00:00]} Kd8 {[%emt 0:00:07]} 27. Rd5 {[%emt 0:04:12]} Ra5 {[%emt 0:03:50]} 28. Kg1 {[%emt 0:01:01]} Kc7 {[%emt 0:03:23]} 29. Re7 {[%emt 0:02:19]} Kc6 {[%emt 0:00:51]} 30. Rd2 {[%emt 0:00:16]} c4 {[%emt 0:00:00]} 31. Rxg7 {[%emt 0:02:21]} c3 {[%emt 0:00:00]} 32. Rc2 {[%emt 0:01:13]} Ba6 {[%emt 0:00:49]} 33. Rg3 {[%emt 0:00:34]} Bc4 {[%emt 0:00:07]} 34. Rg6+ {[%emt 0:01:28]} Kc5 {[%emt 0:01:44]} 35. Rxh6 {[%emt 0:00:00]} Ra4 {[%emt 0:00:27]} 36. Rc1 {[%emt 0:00:00]} Rxa2 {[%emt 0:00:53]} 37. Rh8 {[%emt 0:00:00]} c2 {[%emt 0:00:12]} 38. Rg8 {[%emt 0:00:51]} b3 39. Rc8+ {[%emt 0:00:00]} Kd4 {[%emt 0:00:00]} 40. h5 {[%emt 0:00:00]} d5 {[%emt 0:00:13]} 41. Rb8 {[%emt 0:48:53]} Rb2 {[%emt 0:54:10]} 42. h6 {[%emt 0:00:00]} Rb1 {[%emt 0:00:00]} 0-1

[Event "4NCL 2019-20"]
[Site "Daventry"]
[Date "2020.02.29"]
[Round "1"]
[White "Brett, Andrew R"]
[Black "Murray, David"]
[Result "1-0"]
[ECO "B41"]
[WhiteElo "2079"]
[BlackElo "2145"]
[Annotator "ChessBase"]
[PlyCount "61"]
[EventDate "2020.01.11"]
[EventCountry "ENG"]
[SourceTitle "playchess.com"]
[Source "ChessBase"]
[SourceQuality "1"]
[TimeControl "40/6000:3000+30"]

1. e4 {[%emt 3:02:21]} c5 {[%emt 0:00:07]} 2. Nf3 {[%emt 0:00:23]} e6 {[%emt 0:00:24]} 3. d4 {[%emt 0:00:17]} cxd4 {[%emt 0:00:06]} 4. Nxd4 {[%emt 0:00:09]} a6 {[%emt 0:00:30]} 5. c4 {[%emt 0:01:15]} Qc7 {[%emt 0:02:54]} 6. Nc3 {[%emt 0:01:02]} Nf6 {[%emt 0:01:43]} 7. a3 {[%emt 0:00:58]} Nc6 {[%emt 0:02:01]} 8. Be3 {[%emt 0:00:44]} Ne5 {[%emt 0:03:50]} 9. Be2 {[%emt 0:08:35]} h5 {[%emt 0:06:36]} 10. h3 {[%emt 0:09:50]} d6 {[%emt 0:04:00]} 11. Rc1 {[%emt 0:01:53]} b6 {[%emt 0:01:56]} 12. f4 {[%emt 0:01:54]} Ned7 {[%emt 0:03:02]} 13. O-O {[%emt 0:01:55]} Bb7 {[%emt 0:01:14]} 14. f5 {[%emt 2:54:35]} e5 15. Nd5 Qd8 16. Ne6 fxe6 17. fxe6 Bxd5 18. exd7+ Qxd7 19. exd5 Be7 20. Qc2 Bd8 21. Bd3 Rb8 22. Bg6+ Ke7 23. Bg5 b5 24. c5 b4 25. Kh1 Bc7 26. c6 Qc8 27. Rf5 Rb5 28. Rcf1 Qg8 29. Rxf6 gxf6 30. Bxf6+ Kf8 31. Bxh8+ 1-0

[Event "4NCL 2019-20"]
[Site "Daventry"]
[Date "2020.02.29"]
[Round "1"]
[White "Ackley, Peter J E"]
[Black "Sygnowski, Tomasz"]
[Result "1/2-1/2"]
[ECO "A07"]
[WhiteElo "2002"]
[BlackElo "2185"]
[Annotator "ChessBase"]
[PlyCount "82"]
[EventDate "2020.01.11"]
[EventCountry "ENG"]
[SourceTitle "playchess.com"]
[Source "ChessBase"]
[SourceQuality "1"]
[TimeControl "40/6000:3000+30"]

1. g3 {[%emt 0:00:00]} d5 {[%emt 0:00:00]} 2. Nf3 {[%emt 0:00:00]} Nc6 {[%emt 0:00:07]} 3. Bg2 {[%emt 0:00:00]} e5 {[%emt 0:00:00]} 4. d3 {[%emt 0:00:00]} h6 {[%emt 0:00:00]} 5. O-O {[%emt 0:00:00]} Nf6 {[%emt 0:00:00]} 6. c3 {[%emt 0:01:02]} a5 {[%emt 0:00:00]} 7. Qc2 {[%emt 0:02:17]} Be6 {[%emt 0:00:00]} 8. Nbd2 {[%emt 0:00:04]} Be7 {[%emt 0:00:00]} 9. b3 {[%emt 0:00:00]} O-O {[%emt 0:00:00]} 10. a3 {[%emt 0:00:00]} Nd7 {[%emt 0:08:14]} 11. Bb2 {[%emt 0:04:13]} f5 {[%emt 0:02:16]} 12. c4 {[%emt 0:06:21]} d4 {[%emt 0:11:55]} 13. e3 {[%emt 0:04:44]} Bf6 {[%emt 0:08:37]} 14. exd4 {[%emt 0:06:10]} exd4 {[%emt 0:02:20]} 15. b4 {[%emt 0:17:45]} axb4 {[%emt 0:00:29]} 16. axb4 {[%emt 0:00:00]} Rxa1 {[%emt 0:20:41]} 17. Bxa1 {[%emt 0:09:24]} Nxb4 {[%emt 0:09:13]} 18. Qb3 {[%emt 0:01:25]} Na6 {[%emt 0:13:56]} 19. Nxd4 {[%emt 0:19:42]} Bxd4 {[%emt 0:00:00]} 20. Bxd4 {[%emt 0:00:00]} Ndc5 {[%emt 0:00:00]} 21. Bxc5 {[%emt 0:03:28]} Nxc5 {[%emt 0:00:00]} 22. Qc3 {[%emt 0:02:19]} Qxd3 {[%emt 0:02:47]} 23. Qxd3 {[%emt 0:00:00]} Nxd3 {[%emt 0:00:00]} 24. Bxb7 {[%emt 0:00:00]} Rb8 {[%emt 0:00:00]} 25. Rb1 {[%emt 0:02:37]} Nc5 {[%emt 0:00:00]} 26. Bd5 {[%emt 0:00:25]} Rxb1+ {[%emt 0:00:25]} 27. Nxb1 {[%emt 0:00:00]} Bxd5 {[%emt 0:00:00]} 28. cxd5 {[%emt 0:00:00]} Kf7 {[%emt 0:01:52]} 29. Nc3 {[%emt 0:00:08]} Ke7 {[%emt 0:00:00]} 30. Nb5 {[%emt 0:03:47]} Kd7 {[%emt 0:01:07]} 31. Nd4 {[%emt 0:00:05]} g6 {[%emt 0:00:19]} 32. h4 {[%emt 0:00:00]} f4 {[%emt 0:01:47]} 33. gxf4 {[%emt 0:02:07]} Kd6 {[%emt 0:01:54]} 34. f5 {[%emt 0:02:52]} g5 {[%emt 0:00:03]} 35. hxg5 {[%emt 0:00:00]} hxg5 {[%emt 0:00:00]} 36. Nb5+ {[%emt 0:00:00]} Kxd5 {[%emt 0:00:00]} 37. Nxc7+ {[%emt 0:00:00]} Ke5 {[%emt 0:00:00]} 38. Ne6 {[%emt 0:00:29]} Ne4 {[%emt 0:00:00]} 39. Nxg5 {[%emt 0:00:00]} Nxg5 {[%emt 0:00:00]} 40. f4+ {[%emt 0:00:00]} Kxf5 {[%emt 0:00:00]} 41. fxg5 {[%emt 0:49:32]} Kxg5 {[%emt 0:48:44]} 1/2-1/2

[Event "4NCL 2019-20"]
[Site "Daventry"]
[Date "2020.02.29"]
[Round "1"]
[White "York-Weaving, Anna"]
[Black "Taylor, Martin R"]
[Result "0-1"]
[ECO "C86"]
[WhiteElo "1739"]
[BlackElo "2345"]
[Annotator "ChessBase"]
[PlyCount "50"]
[EventDate "2020.01.11"]
[EventCountry "ENG"]
[SourceTitle "playchess.com"]
[Source "ChessBase"]
[SourceQuality "1"]
[TimeControl "40/6000:3000+30"]

1. e4 {[%emt 0:46:46]} e5 {[%emt 0:00:00]} 2. Nf3 {[%emt 0:00:00]} Nc6 {[%emt 0:00:00]} 3. Bb5 {[%emt 0:00:00]} a6 {[%emt 0:00:00]} 4. Ba4 {[%emt 0:00:00]} Nf6 {[%emt 0:00:00]} 5. Qe2 {[%emt 0:00:00]} b5 {[%emt 0:00:00]} 6. Bb3 {[%emt 0:00:27]} Be7 {[%emt 0:00:00]} 7. c3 {[%emt 0:00:00]} O-O {[%emt 0:00:47]} 8. O-O {[%emt 0:00:07]} d5 {[%emt 0:04:11]} 9. exd5 {[%emt 0:02:27]} Nxd5 {[%emt 0:02:08]} 10. d3 {[%emt 0:03:23]} Bb7 {[%emt 0:07:29]} 11. Rd1 {[%emt 0:00:55]} Re8 {[%emt 0:10:23]} 12. Be3 {[%emt 0:07:08]} h6 {[%emt 0:08:18]} 13. Nbd2 {[%emt 0:04:03]} Bf8 {[%emt 0:08:34]} 14. Nf1 {[%emt 0:03:00]} Na5 {[%emt 0:07:16]} 15. Bc2 {[%emt 0:01:39]} Nf4 {[%emt 0:03:23]} 16. Bxf4 {[%emt 0:05:29]} exf4 {[%emt 0:00:00]} 17. Qd2 {[%emt 0:00:00]} Bxf3 {[%emt 0:04:17]} 18. gxf3 {[%emt 0:00:00]} Qg5+ {[%emt 0:01:08]} 19. Kh1 {[%emt 0:00:00]} Re6 {[%emt 0:00:38]} 20. d4 {[%emt 0:00:00]} Nc4 {[%emt 0:01:38]} 21. Qc1 {[%emt 0:02:57]} Re2 {[%emt 0:00:27]} 22. Nd2 {[%emt 0:01:24]} Rxf2 {[%emt 0:03:22]} 23. Rg1 {[%emt 0:00:06]} Rxh2+ {[%emt 0:00:27]} 24. Kxh2 {[%emt 0:00:00]} Qh4+ {[%emt 0:00:00]} 25. Kg2 {[%emt 0:00:00]} Ne3# {[%emt 0:00:54] Qd1} 0-1

[Event "4NCL 2019-20"]
[Site "Daventry"]
[Date "2020.03.01"]
[Round "2"]
[White "Jackson, James P"]
[Black "Houska, Jovanka"]
[Result "1-0"]
[ECO "B12"]
[WhiteElo "2392"]
[BlackElo "2401"]
[Annotator "ChessBase"]
[PlyCount "83"]
[EventDate "2020.01.11"]
[EventCountry "ENG"]
[SourceTitle "playchess.com"]
[Source "ChessBase"]
[SourceQuality "1"]
[TimeControl "40/6000:3000+30"]

1. e4 {[%emt 0:00:00]} c6 {[%emt 0:00:51]} 2. d4 {[%emt 0:00:00]} d5 {[%emt 0:00:00]} 3. e5 {[%emt 0:00:00]} Bf5 {[%emt 0:00:00]} 4. h4 {[%emt 0:00:00]} h5 {[%emt 0:00:00]} 5. Bd3 {[%emt 0:00:00]} Bxd3 {[%emt 0:00:00]} 6. Qxd3 {[%emt 0:00:00]} Qa5+ {[%emt 0:00:00]} 7. Nd2 {[%emt 0:00:00]} e6 {[%emt 0:00:00]} 8. Ne2 {[%emt 0:00:00]} Nh6 {[%emt 0:00:00]} 9. Ng3 {[%emt 0:04:21]} Qa6 {[%emt 0:00:00]} 10. c4 {[%emt 0:00:38]} c5 {[%emt 0:00:00]} 11. dxc5 {[%emt 0:19:03]} Nc6 {[%emt 0:04:40]} 12. O-O {[%emt 0:02:55]} Bxc5 {[%emt 0:14:37]} 13. Nf3 {[%emt 0:03:52]} Qxc4 {[%emt 0:02:41]} 14. Qxc4 {[%emt 0:00:03]} dxc4 {[%emt 0:00:00]} 15. Bxh6 {[%emt 0:00:00]} Rxh6 {[%emt 0:00:43]} 16. Rfc1 {[%emt 0:00:00]} Na5 {[%emt 0:06:26]} 17. b3 {[%emt 0:07:07]} Ba3 {[%emt 0:05:31]} 18. Rc2 {[%emt 0:00:00]} b5 {[%emt 0:07:27]} 19. Rb1 {[%emt 0:09:57]} a6 {[%emt 0:01:46]} 20. Ne4 {[%emt 0:01:54]} Rg6 {[%emt 0:23:51]} 21. g3 {[%emt 0:12:46]} Be7 {[%emt 0:01:35]} 22. Nfg5 {[%emt 0:03:22]} Rd8 {[%emt 0:01:10]} 23. Kg2 {[%emt 0:07:04]} Rd3 {[%emt 0:03:51]} 24. f4 {[%emt 0:08:56]} f6 {[%emt 0:05:12]} 25. Nf3 {[%emt 0:03:07]} Nc6 {[%emt 0:00:04]} 26. bxc4 {[%emt 0:01:27]} b4 {[%emt 0:01:32]} 27. Rb3 {[%emt 0:00:27]} Rxf3 {[%emt 0:02:16]} 28. Rxf3 {[%emt 0:00:00]} Nd4 {[%emt 0:00:00]} 29. Rd2 {[%emt 0:00:00]} Nxf3 {[%emt 0:00:00]} 30. Kxf3 {[%emt 0:00:00]} fxe5 {[%emt 0:00:00]} 31. fxe5 {[%emt 0:00:00]} Rg4 {[%emt 0:00:00]} 32. c5 {[%emt 0:00:00]} Rxe4 {[%emt 0:00:00]} 33. Kxe4 {[%emt 0:00:00]} Bxc5 {[%emt 0:00:00]} 34. Rc2 {[%emt 0:00:00]} Bg1 {[%emt 0:00:33]} 35. Rc6 {[%emt 0:02:13]} Kf7 {[%emt 0:00:40]} 36. Rxa6 {[%emt 0:00:00]} Bf2 {[%emt 0:00:00]} 37. Kf4 {[%emt 0:00:00]} Bd4 {[%emt 0:00:05]} 38. Rd6 {[%emt 0:00:00]} Bb2 {[%emt 0:00:47]} 39. Rd7+ {[%emt 0:00:43]} Kf8 {[%emt 0:00:00]} 40. Rc7 {[%emt 0:00:07]} Bc3 {[%emt 0:04:31]} 41. Rxc3 {[%emt 0:50:48]} bxc3 {[%emt 0:50:36]} 42. Ke3 {[%emt 0:00:05]} 1-0

[Event "4NCL 2019-20"]
[Site "Daventry"]
[Date "2020.03.01"]
[Round "2"]
[White "Macklin, Paul"]
[Black "Hill, Alistair"]
[Result "1/2-1/2"]
[ECO "B22"]
[WhiteElo "2341"]
[BlackElo "2217"]
[Annotator "ChessBase"]
[PlyCount "27"]
[EventDate "2020.01.11"]
[EventCountry "ENG"]
[SourceTitle "playchess.com"]
[Source "ChessBase"]
[SourceQuality "1"]
[TimeControl "40/6000:3000+30"]

1. e4 {[%emt 0:03:53]} c5 {[%emt 0:00:00]} 2. Nf3 {[%emt 0:00:37]} Nc6 {[%emt 0:00:00]} 3. c3 {[%emt 0:00:00]} Nf6 {[%emt 0:00:00]} 4. e5 {[%emt 0:00:00]} Nd5 {[%emt 0:00:00]} 5. d4 {[%emt 0:00:00]} cxd4 {[%emt 0:00:00]} 6. cxd4 {[%emt 0:00:00]} d6 {[%emt 0:00:00]} 7. Bc4 {[%emt 0:00:00]} dxe5 {[%emt 0:00:00]} 8. dxe5 {[%emt 0:13:22]} Ndb4 {[%emt 0:00:00]} 9. Qe2 {[%emt 0:11:34]} Bf5 {[%emt 0:09:17]} 10. O-O {[%emt 0:08:19]} Bd3 {[%emt 0:16:11]} 11. Bxd3 {[%emt 0:01:15]} Qxd3 {[%emt 0:00:00]} 12. Qxd3 {[%emt 0:09:53]} Nxd3 {[%emt 0:00:00]} 13. e6 {[%emt 0:00:00]} fxe6 {[%emt 0:17:16]} 14. Ng5 {[%emt 0:08:29]} 1/2-1/2

[Event "4NCL 2019-20"]
[Site "Daventry"]
[Date "2020.03.01"]
[Round "2"]
[White "O'Donnell, Conor"]
[Black "Lauterbach, Ingrid"]
[Result "1-0"]
[ECO "E60"]
[WhiteElo "2307"]
[BlackElo "2051"]
[Annotator "ChessBase"]
[PlyCount "86"]
[EventDate "2020.01.11"]
[EventCountry "ENG"]
[SourceTitle "playchess.com"]
[Source "ChessBase"]
[SourceQuality "1"]
[TimeControl "40/6000:3000+30"]

1. d4 {[%emt 0:03:21]} f5 {[%emt 0:00:00]} 2. g3 {[%emt 0:00:28]} g6 {[%emt 0:00:00]} 3. Bg2 {[%emt 0:00:08]} Nf6 {[%emt 0:00:00]} 4. Nf3 {[%emt 0:00:37]} Bg7 {[%emt 0:00:00]} 5. O-O {[%emt 0:00:00]} O-O {[%emt 0:00:00]} 6. c4 {[%emt 0:00:42]} d6 {[%emt 0:00:00]} 7. b3 {[%emt 0:01:07]} Ne4 {[%emt 0:04:43]} 8. Bb2 {[%emt 0:02:27]} c5 {[%emt 0:02:28]} 9. Qc2 {[%emt 0:09:18]} Nc6 {[%emt 0:03:04]} 10. Rd1 {[%emt 0:06:00]} cxd4 {[%emt 0:10:08]} 11. Nxd4 {[%emt 0:01:07]} Qb6 {[%emt 0:09:07]} 12. e3 {[%emt 0:01:19]} Bd7 {[%emt 0:04:57]} 13. Nd2 {[%emt 0:25:58]} Nxd4 {[%emt 0:06:17]} 14. Bxd4 {[%emt 0:00:12]} Bxd4 {[%emt 0:00:00]} 15. exd4 {[%emt 0:00:05]} Nf6 {[%emt 0:01:41]} 16. c5 {[%emt 0:02:16]} dxc5 {[%emt 0:02:06]} 17. dxc5 {[%emt 0:02:32]} Qc7 {[%emt 0:00:00]} 18. b4 {[%emt 0:03:05]} f4 {[%emt 0:03:25]} 19. Qc4+ {[%emt 0:03:23]} Kg7 {[%emt 0:00:00]} 20. Qxf4 {[%emt 0:01:22]} Qxf4 {[%emt 0:02:10]} 21. gxf4 {[%emt 0:00:00]} Bc6 {[%emt 0:00:01]} 22. Bxc6 {[%emt 0:00:00]} bxc6 {[%emt 0:00:00]} 23. Nb3 {[%emt 0:06:48]} Nd5 {[%emt 0:01:16]} 24. Nd4 {[%emt 0:00:16]} Rf6 {[%emt 0:02:17]} 25. Nxc6 {[%emt 0:06:27]} Nxf4 {[%emt 0:01:53]} 26. Nxe7 {[%emt 0:01:55]} Nh3+ {[%emt 0:00:00]} 27. Kg2 {[%emt 0:00:07]} Nxf2 {[%emt 0:02:29]} 28. Rd7 {[%emt 0:01:43]} Ne4 {[%emt 0:01:19]} 29. Nd5+ {[%emt 0:03:45]} Rf7 {[%emt 0:00:17]} 30. Rxf7+ {[%emt 0:00:07]} Kxf7 {[%emt 0:00:00]} 31. Rf1+ {[%emt 0:00:52]} Kg7 {[%emt 0:00:13]} 32. Re1 {[%emt 0:00:16]} Rd8 {[%emt 0:03:11]} 33. Rxe4 {[%emt 0:00:02]} Rxd5 {[%emt 0:00:00]} 34. Re7+ {[%emt 0:00:02]} Kf6 {[%emt 0:00:00]} 35. Rxa7 {[%emt 0:00:00]} Rd2+ {[%emt 0:00:00]} 36. Kg3 {[%emt 0:00:16]} h5 {[%emt 0:00:04]} 37. c6 {[%emt 0:01:56]} h4+ {[%emt 0:01:45]} 38. Kf3 {[%emt 0:05:49]} Rxh2 {[%emt 0:00:00]} 39. b5 {[%emt 0:00:54]} Rc2 {[%emt 0:01:23]} 40. Rh7 {[%emt 0:01:07]} g5 {[%emt 0:00:37]} 41. b6 {[%emt 0:08:51]} Kf5 {[%emt 0:05:13]} 42. b7 {[%emt 0:02:20]} Rb2 {[%emt 0:05:58]} 43. c7 {[%emt 0:00:21]} Rb1 {[%emt 0:00:02] Ke4+} 1-0

[Event "4NCL 2019-20"]
[Site "Daventry"]
[Date "2020.03.01"]
[Round "2"]
[White "Grieve, Harry"]
[Black "Delaney, Killian"]
[Result "1/2-1/2"]
[ECO "B12"]
[WhiteElo "2299"]
[BlackElo "2287"]
[Annotator "ChessBase"]
[PlyCount "57"]
[EventDate "2020.01.11"]
[EventCountry "ENG"]
[SourceTitle "playchess.com"]
[Source "ChessBase"]
[SourceQuality "1"]
[TimeControl "40/6000:3000+30"]

1. e4 {[%emt 0:00:00]} c6 {[%emt 0:00:42]} 2. d4 {[%emt 0:00:00]} d5 {[%emt 0:00:00]} 3. e5 {[%emt 0:00:00]} Bf5 {[%emt 0:00:00]} 4. h4 {[%emt 0:00:00]} c5 {[%emt 0:00:00]} 5. Nc3 {[%emt 0:02:21]} cxd4 {[%emt 0:04:02]} 6. Qxd4 {[%emt 0:02:39]} Nc6 {[%emt 0:00:00]} 7. Bb5 {[%emt 0:03:05]} a6 {[%emt 0:10:06]} 8. Bxc6+ {[%emt 0:03:37]} bxc6 {[%emt 0:00:00]} 9. g4 {[%emt 0:04:15]} Bd7 {[%emt 0:02:10]} 10. h5 {[%emt 0:15:24]} e6 {[%emt 0:08:44]} 11. Na4 {[%emt 0:00:00]} c5 {[%emt 0:00:00]} 12. Nxc5 {[%emt 0:00:00]} Qa5+ {[%emt 0:00:00]} 13. b4 {[%emt 0:00:00]} Bxc5 {[%emt 0:00:00]} 14. Qxc5 {[%emt 0:00:00]} Qa4 {[%emt 0:00:00]} 15. Be3 {[%emt 0:09:20]} Rc8 {[%emt 0:06:17]} 16. Qd6 {[%emt 0:02:16]} Rc6 {[%emt 0:12:05]} 17. Qb8+ {[%emt 0:00:00]} Rc8 {[%emt 0:00:00]} 18. Qd6 {[%emt 0:00:00]} Rc6 {[%emt 0:20:47]} 19. Qb8+ {[%emt 0:00:00]} Rc8 {[%emt 0:00:00]} 20. Qb6 {[%emt 0:23:22]} Nh6 {[%emt 0:06:02]} 21. Bc5 {[%emt 0:00:49]} Qxc2 {[%emt 0:00:00]} 22. Rh3 {[%emt 0:00:00]} Qb2 {[%emt 0:03:39]} 23. Rd1 {[%emt 0:01:39]} Qxe5+ {[%emt 0:00:09]} 24. Re3 {[%emt 0:08:20]} Qb8 {[%emt 0:06:34]} 25. Qxa6 {[%emt 0:06:13]} Rxc5 {[%emt 0:06:13]} 26. bxc5 {[%emt 0:00:00]} Qb4+ {[%emt 0:00:00]} 27. Rd2 {[%emt 0:00:00]} Qb1+ {[%emt 0:00:00]} 28. Rd1 {[%emt 0:00:00]} Qb4+ {[%emt 0:00:00]} 29. Rd2 {[%emt 0:00:00]} 1/2-1/2

[Event "4NCL 2019-20"]
[Site "Daventry"]
[Date "2020.03.01"]
[Round "2"]
[White "House, Glenn L"]
[Black "Stewart, Ashley"]
[Result "1/2-1/2"]
[ECO "A05"]
[WhiteElo "2239"]
[BlackElo "2152"]
[Annotator "ChessBase"]
[PlyCount "86"]
[EventDate "2020.01.11"]
[EventCountry "ENG"]
[SourceTitle "playchess.com"]
[Source "ChessBase"]
[SourceQuality "1"]
[TimeControl "40/6000:3000+30"]

1. Nf3 {[%emt 0:00:00]} Nf6 {[%emt 0:00:00]} 2. g3 {[%emt 0:00:00]} g6 {[%emt 0:00:00]} 3. Bg2 {[%emt 0:00:00]} Bg7 {[%emt 0:00:00]} 4. O-O {[%emt 0:00:00]} O-O {[%emt 0:00:00]} 5. d3 {[%emt 0:00:00]} d6 {[%emt 0:00:00]} 6. e4 {[%emt 0:00:00]} c5 {[%emt 0:00:00]} 7. c3 {[%emt 0:00:00]} Nc6 {[%emt 0:00:00]} 8. Re1 {[%emt 0:00:00]} e5 {[%emt 0:00:00]} 9. a3 {[%emt 0:00:00]} Rb8 {[%emt 0:00:00]} 10. b4 {[%emt 0:00:00]} b5 {[%emt 0:00:00]} 11. Nbd2 {[%emt 0:03:11]} Qe7 {[%emt 0:00:53]} 12. Rb1 {[%emt 0:10:29]} Nd7 {[%emt 0:06:14]} 13. Nf1 {[%emt 0:03:13]} a5 {[%emt 0:04:42]} 14. Ne3 {[%emt 0:05:45]} cxb4 {[%emt 0:02:17]} 15. Nd5 {[%emt 0:00:26]} Qd8 {[%emt 0:00:39]} 16. axb4 {[%emt 0:02:18]} axb4 {[%emt 0:04:53]} 17. cxb4 {[%emt 0:00:28]} Re8 {[%emt 0:11:26]} 18. Qc2 {[%emt 0:05:14]} Ne7 {[%emt 0:05:14]} 19. Nc7 {[%emt 0:03:21]} Rf8 {[%emt 0:02:45]} 20. Bg5 {[%emt 0:00:00]} Nf6 {[%emt 0:03:40]} 21. Rec1 {[%emt 0:03:59]} Bg4 {[%emt 0:05:47]} 22. Ra1 {[%emt 0:04:44]} Rb7 {[%emt 0:03:26]} 23. Ra3 {[%emt 0:13:02]} Qd7 {[%emt 0:03:12]} 24. Rc3 {[%emt 0:01:06]} h6 {[%emt 0:06:29]} 25. Be3 {[%emt 0:03:01]} Bh3 {[%emt 0:05:59]} 26. Qa2 {[%emt 0:06:10]} Rc8 {[%emt 0:04:58]} 27. Qa5 {[%emt 0:00:36]} Kh7 {[%emt 0:03:28]} 28. Bb6 {[%emt 0:02:32]} Rcb8 {[%emt 0:03:55]} 29. Ba7 {[%emt 0:03:42]} Bxg2 {[%emt 0:03:07]} 30. Kxg2 {[%emt 0:00:04]} Rc8 {[%emt 0:00:05]} 31. Bb6 {[%emt 0:05:16]} Rcb8 {[%emt 0:01:54]} 32. Ba7 {[%emt 0:01:42]} Rc8 {[%emt 0:00:00]} 33. Bb6 {[%emt 0:00:00]} Rcb8 {[%emt 0:01:18]} 34. Be3 {[%emt 0:00:00]} Ng4 {[%emt 0:03:23]} 35. Ba7 {[%emt 0:00:00]} Rc8 {[%emt 0:00:00]} 36. h3 {[%emt 0:00:00]} Nf6 {[%emt 0:00:00]} 37. Bb6 {[%emt 0:00:00]} Rcb8 {[%emt 0:02:34]} 38. Ba7 {[%emt 0:02:22]} Rc8 {[%emt 0:00:00]} 39. Be3 {[%emt 0:00:00]} Nh5 {[%emt 0:04:35]} 40. Bb6 {[%emt 0:11:46]} Rcb8 {[%emt 0:01:12]} 41. Ba7 {[%emt 0:09:49]} Rc8 {[%emt 0:02:30]} 42. Bb6 {[%emt 0:00:42]} Rcb8 {[%emt 0:04:00]} 43. Ba7 {[%emt 0:00:13]} Rc8 {[%emt 0:03:24]} 1/2-1/2

[Event "4NCL 2019-20"]
[Site "Daventry"]
[Date "2020.03.01"]
[Round "2"]
[White "Mitchell, Martin"]
[Black "Lee, Richard W Y"]
[Result "1-0"]
[ECO "D41"]
[WhiteElo "2207"]
[BlackElo "2130"]
[Annotator "ChessBase"]
[PlyCount "77"]
[EventDate "2020.01.11"]
[EventCountry "ENG"]
[SourceTitle "playchess.com"]
[Source "ChessBase"]
[SourceQuality "1"]
[TimeControl "40/6000:3000+30"]

1. d4 {[%emt 0:00:00]} e6 {[%emt 0:00:00]} 2. c4 {[%emt 0:00:00]} Nf6 {[%emt 0:00:00]} 3. Nc3 {[%emt 0:00:07]} d5 {[%emt 0:00:00]} 4. Nf3 {[%emt 0:00:00]} c5 {[%emt 0:00:00]} 5. cxd5 {[%emt 0:04:45]} Nxd5 {[%emt 0:00:00]} 6. e3 {[%emt 0:00:27]} cxd4 {[%emt 0:00:00]} 7. exd4 {[%emt 0:01:07]} Nxc3 {[%emt 0:02:49]} 8. bxc3 {[%emt 0:00:00]} Qc7 {[%emt 0:00:00]} 9. c4 {[%emt 0:13:36]} Bb4+ {[%emt 0:04:51]} 10. Bd2 {[%emt 0:00:48]} Bxd2+ {[%emt 0:00:06]} 11. Qxd2 {[%emt 0:00:13]} O-O {[%emt 0:00:00]} 12. Bd3 {[%emt 0:02:23]} Nd7 {[%emt 0:03:02]} 13. Qe3 {[%emt 0:13:55]} Qb6 {[%emt 0:06:02]} 14. Ke2 {[%emt 0:00:22]} Nf6 {[%emt 0:16:50]} 15. Rhb1 {[%emt 0:06:46]} Qc7 {[%emt 0:05:50]} 16. Ne5 {[%emt 0:06:18]} Rd8 {[%emt 0:07:34]} 17. g4 {[%emt 0:13:40]} Nd7 {[%emt 0:17:43]} 18. f4 {[%emt 0:03:49]} Rb8 {[%emt 0:06:31]} 19. Kf2 {[%emt 0:09:37]} Nxe5 {[%emt 0:07:01]} 20. fxe5 {[%emt 0:00:58]} b6 {[%emt 0:00:00]} 21. Rg1 {[%emt 0:00:00]} Qd7 {[%emt 0:01:11]} 22. Rad1 {[%emt 0:00:03]} Qa4 {[%emt 0:01:00]} 23. Rd2 {[%emt 0:05:13]} Ba6 {[%emt 0:02:49]} 24. Qe4 {[%emt 0:03:44]} g6 {[%emt 0:01:17]} 25. Rc1 {[%emt 0:02:42]} Bb7 {[%emt 0:02:24]} 26. Qe3 {[%emt 0:00:15]} Qc6 {[%emt 0:01:15]} 27. Kg3 {[%emt 0:01:08]} Rd7 {[%emt 0:00:43]} 28. Bf1 {[%emt 0:00:33]} Rbd8 {[%emt 0:03:28]} 29. Bg2 {[%emt 0:00:20]} Qa4 {[%emt 0:00:26]} 30. Bxb7 {[%emt 0:00:05]} Rxb7 {[%emt 0:00:00]} 31. d5 {[%emt 0:00:20]} exd5 {[%emt 0:02:05]} 32. cxd5 {[%emt 0:00:00]} Qe8 {[%emt 0:01:07]} 33. d6 {[%emt 0:00:39]} Rc8 {[%emt 0:01:33]} 34. Rxc8 {[%emt 0:00:16]} Qxc8 {[%emt 0:00:00]} 35. e6 {[%emt 0:01:17]} fxe6 {[%emt 0:00:00]} 36. d7 {[%emt 0:00:00]} Qd8 {[%emt 0:00:07]} 37. Qxe6+ {[%emt 0:00:00]} Kg7 {[%emt 0:00:43]} 38. Qe5+ {[%emt 0:00:00]} Kh6 {[%emt 0:00:22]} 39. g5+ {[%emt 0:00:00]} 1-0